Cogmind - Beta 16.1 @@@ ROGUE MODE // 2026.04.30 @ 12:46:09 Player: SunShine214 Result: Destroyed by UM-TVT(R) with Subdweller Beam Cannon Performance ------------- Evolutions (0) 0 Regions Visited (2) 400 Robots Destroyed (26) 130 Value Destroyed (567) 567 Prototype IDs (2) 40 Alien Tech Used (0) 0 Bonus (0) 0 TOTAL SCORE: 1137 Bonus ------- None Cogmind --------- Core Integrity 0/250 Matter 300/300 Energy 99/100 System Corruption 0% Temperature Cool (9) Movement Treading (240) Ox1 Location -10/Subcaves Parts ------- > --- POWER (1) -------- (None) > --- PROPULSION (2) --- Light Treads > --- UTILITY (2) ------ Large Storage Unit Seismic Detector > --- WEAPON (2) ------- Subdweller Beam Cannon Makeshift Axe > --- INVENTORY (15) --- Light Ion Engine Light Ion Engine Light Treads Light Treads Flight Unit Flight Unit Large Storage Unit Sensor Array Signal Interpreter Seismic Detector Small Laser Beam Cannon Subdweller Shrapnel Launcher Peak State ------------ > --- POWER ------------ Ion Engine > --- PROPULSION ------- Light Treads Light Treads > --- UTILITY ---------- Large Storage Unit Seismic Detector > --- WEAPON ----------- Battle Cannon Makeshift Axe > --- INVENTORY -------- Light Ion Engine Light Ion Engine Light Treads Light Treads Light Treads Light Treads Flight Unit Flight Unit Large Storage Unit Sensor Array Signal Interpreter Seismic Detector Small Laser Beam Cannon Grenade Launcher [Rating: 12] Favorites ----------- Power Ion Engine Engine Ion Engine Propulsion Light Treads Treads Light Treads Utility Seismic Detector Device Seismic Detector Storage Large Storage Unit Weapon Beam Cannon Energy Gun Small Laser Energy Cannon Beam Cannon Ballistic Gun Assault Rifle Ballistic Cannon Battle Cannon Launcher Grenade Launcher Special Weapon Mining Laser Slashing Weapon Makeshift Axe Build | -11 -10 -10 ------- Run | Yrd Mat Sub Slots Evolved . | . . . Power . | . . . Propulsion . | . . . Utility . | . . . Weapon . | . . . Parts Attached 24 | 7 11 6 Power 3 | 1 2 . Engine 3 | 1 2 . Core . | . . . Reactor . | . . . Propulsion 6 | 2 2 2 Treads 6 | 2 2 2 Leg . | . . . Wheel . | . . . Hover . | . . . Flight . | . . . Utility 4 | 2 2 . Device 2 | 1 1 . Storage 2 | 1 1 . Processor . | . . . Hackware . | . . . Protection . | . . . Artifact . | . . . Weapon 11 | 2 5 4 Energy Gun 2 | 1 1 . Energy Cannon 4 | . 3 1 Ballistic Gun 1 | 1 . . Ballistic Cannon 1 | . . 1 Launcher 1 | . . 1 Special Weapon 1 | . 1 . Impact Weapon . | . . . Slashing Weapon 1 | . . 1 Piercing Weapon . | . . . Special Melee Weapon . | . . . Unidentified Prototypes . | . . . Parts Lost 6 | . . 6 Power 1 | . . 1 Propulsion 3 | . . 3 Utility . | . . . Weapon 2 | . . 2 Highest Loss Streak 4 | . . 4 To Critical Strikes . | . . . Average Backups 10 | . 10 14 Power 1 | . 1 2 Propulsion 4 | . 4 5 Utility 2 | . 2 4 Weapon 2 | . 1 2 Tool/Special . | . . . Unused Backups 8 | . 1 7 Power . | . . . Propulsion 3 | . 1 2 Utility 4 | . . 4 Weapon 1 | . . 1 Tool/Special . | . . . Average Slot Usage (%) 97 | . 100 93 Engine 12 | . 14 8 Treads 28 | . 28 28 Device 14 | . 14 14 Storage 14 | . 14 14 Energy Gun 4 | . 6 . Energy Cannon 11 | . 12 8 Ballistic Gun 4 | . 6 . Ballistic Cannon 1 | . . 5 Special Weapon 2 | . 2 2 Slashing Weapon 4 | . . 11 Peak Build Rating 12 | 7 8 12 Average Rating 8 | 5 7 10 On Entrance 5 | . 7 8 Avg Prop Armor Cover (%) . | . . . Naked Turns . | . . . Heaviest Build 32 | 12 32 32 Greatest Support 40 | 40 40 40 Greatest Overweight (x) 1 | . . 1 Average Overweight (x) . | . . . Largest Inventory Capacity 15 | 8 15 15 Average Capacity 14 | 7 14 15 Most Carried 15 | . 15 15 Average Carried 11 | . 10 14 Final Capacity 15 | 8 15 15 Final Carried 15 | . 15 13 Class Distribution -------------------- 100% | Mutant Dominant Class ---------------- Mutant | -10/Materials Mutant | -10/Subcaves Resources | -11 -10 -10 ----------- Run | Yrd Mat Sub Matter Collected 639 | 315 209 115 Remotely . | . . . Salvage Created 822 | 144 411 267 Parts 58 | 7 31 20 Haulers Intercepted 2 | . 2 . Recyclers Shooed . | . . . Parts Field Recycled . | . . . Retrieved Matter . | . . . Parts Self-Destructed 1 | . . 1 Prevented . | . . . Parts Restored . | . . . Kills | -11 -10 -10 ------- Run | Yrd Mat Sub Combat Hostiles Destroyed 17 | . 10 7 Melee 6 | . . 6 Guns 8 | . 8 . Cannons 3 | . 2 1 Classes Destroyed 8 | 2 5 1 Builder 1 | . 1 . Tunneler 3 | 3 . . Hauler 2 | . 2 . Recycler 1 | 1 . . Watcher 2 | . 2 . Swarmer 6 | . 6 . Grunt 4 | . 4 . Subdweller 7 | . . 7 Best Kill Streak 5 | 3 5 3 Combat Bots Only 5 | . 5 3 Max Kills in Single Turn 2 | 1 2 1 Gunslinging 1 | . 1 . Exploded . | . . . Melee 1 | . . 1 Uniques/NPCs Destroyed . | . . . Combat | -11 -10 -10 -------- Run | Yrd Mat Sub Hostile Shots Fired 122 | . 59 63 Missed 32 | . 15 17 Hits 90 | . 44 46 Projectile 90 | . 44 46 Critical Strikes 3 | . 1 2 Damage Taken 1608 | . 486 1122 Core 258 | . 77 181 Absorbed by Shields . | . . . Core Remaining (%) 100 | 100 . . Volleys Fired 78 | 15 54 9 Largest 2 | 2 2 2 Hottest 160 | 60 160 63 Shots Fired 147 | 30 107 10 Gun 95 | 30 65 . Cannon 48 | . 39 9 Launcher 1 | . . 1 Special 3 | . 3 . Kinetic 57 | 15 33 9 Thermal 89 | 15 74 . Explosive 1 | . . 1 Electromagnetic . | . . . Robot Hit Streak 10 | 6 10 6 Robot Miss Streak 4 | 2 4 1 Penetration Max . | . . . Secondary Targets 2 | . 2 . Max Gunslinging Chain 1 | . 1 . Shots Hit Robots 111 | 20 61 30 Core Hits 35 | 5 22 8 Critical Kills . | . . . Critical Parts Destroyed . | . . . Critical Strikes 1 | . . 1 Blast 1 | . . 1 Melee Attacks 32 | . . 32 Impact . | . . . Slashing 32 | . . 32 Piercing . | . . . Sneak Attacks . | . . . Combat Hostiles . | . . . Follow-up Attacks . | . . . Damage Inflicted 2094 | 238 880 976 Guns 756 | 238 518 . Cannons 483 | . 334 149 Explosions . | . . . Melee 827 | . . 827 Ramming 28 | . 28 . Kinetic 577 | 126 302 149 Thermal 662 | 112 550 . Explosive . | . . . Electromagnetic . | . . . Impact . | . . . Slashing 827 | . . 827 Piercing . | . . . Highest Corruption . | . . . Average Corruption . | . . . Corruption Purged . | . . . Corruption Blocked . | . . . Overload Shots . | . . . Overflow Damage 13 | . 13 . Projectiles 13 | . 13 . Explosions . | . . . Melee . | . . . Knockbacks 1 | . . 1 Impact . | . . . Kinetic 1 | . . 1 Secondary . | . . . Self-Inflicted Damage 5 | . . 5 Shots 1 | . . 1 Rammed 6 | . 6 . Targets Rammed 6 | . 6 . Kicked . | . . . Crushed . | . . . Highest Temperature 471 | . 471 266 Average Temperature 159 | . 160 143 Received Heat Transfer 741 | . 195 546 Effects 4 | . 4 . Shutdowns 2 | . 2 . Short Circuit 1 | . 1 . Damage (minor) 1 | . 1 . Siege Activations . | . . . Martial Activations . | . . . Shielding Activations . | . . . Robots Disrupted . | . . . Combat Hostiles . | . . . Robots Corrupted . | . . . Combat Hostiles . | . . . Parts Fried . | . . . Impact Corruptions . | . . . Robots Melted . | . . . Combat Hostiles . | . . . Parts Melted 1 | . 1 . Heat Transferred 1453 | 250 1203 . Parts Sabotaged . | . . . Parts Stolen . | . . . Parts Stripped . | . . . Power Chain Reactions . | . . . Alert | -11 -10 -10 ------- Run | Yrd Mat Sub Maximum Alert Level . | . . . Low Security (%) 100 | 100 100 . Level 1 . | . . . Level 2 . | . . . Level 3 . | . . . Level 4 . | . . . Level 5 . | . . . High Security . | . . . Max Security . | . . . Peak Influence 109 | 5 109 . Initial . | . . . Average 16 | . 17 . Influence Increases 320 | 20 300 . Destroy 0b10 Robot/C 200 | . 200 . Destroy 0b10 Robot/NC 45 | 20 25 . Destroy Leader 38 | . 38 . Successful Hack 7 | . 7 . Disable Machine 15 | . 15 . Lose Combat Pursuer 15 | . 15 . Influence Decreases 320 | 20 300 . Time Decay 320 | 20 300 . Squads Dispatched . | . . . Investigation . | . . . Extermination . | . . . Reinforcement . | . . . Assault . | . . . Garrison . | . . . Intercept . | . . . Searches Triggered . | . . . Construction Impeded . | . . . Haulers Reinforced . | . . . Active Scanning Responses . | . . . Cargo Convoy Interrupts . | . . . Stealth | -11 -10 -10 --------- Run | Yrd Mat Sub Distress Signals 1 | . 1 . Communications Jammed . | . . . Distress Signals . | . . . Times Spotted 28 | . 20 8 Peak Tracking Total 4 | . 4 3 Tactical Retreats 1 | . 1 . Traps | -11 -10 -10 ------- Run | Yrd Mat Sub Traps Triggered 1 | . . 1 Indirectly . | . . . Trap Hack Attempts . | . . . Triggered . | . . . Disarmed . | . . . Reprogrammed . | . . . Reused . | . . . Traps Extracted . | . . . Installed . | . . . Triggered . | . . . Machines | -11 -10 -10 ---------- Run | Yrd Mat Sub Machines Disabled 1 | . 1 . Max in Single Turn 1 | . 1 . Machines Repaired . | . . . Machines Dismantled . | . . . Machines Sabotaged . | . . . Overloaded Fab Kills . | . . . Hacking | -11 -10 -10 --------- Run | Yrd Mat Sub Machines Accessed 8 | . 7 1 Terminals 6 | . 6 . Fabricators . | . . . Repair Stations . | . . . Recycling Units 1 | . 1 . Scanalyzers . | . . . Garrison Access . | . . . Total Hacks 15 | . 11 4 Successful 11 | . 7 4 Failed 4 | . 4 . Catastrophic . | . . . Database Lockouts . | . . . Manual . | . . . Terminals 9 | . 9 . Fabricators . | . . . Repair Stations . | . . . Recycling Units 2 | . 2 . Scanalyzers . | . . . Garrison Access . | . . . Terminal Hacks 10 | . 6 4 Record 4 | . . 4 Prototype ID Bank 1 | . 1 . Branch Access Points 1 | . 1 . Repair Station Index 1 | . 1 . Locate Traps 1 | . 1 . Dispatch Records 1 | . 1 . Registered Components 1 | . 1 . Fabricator Hacks . | . . . Repair Station Hacks . | . . . Recycling Unit Hacks 1 | . 1 . Retrieve Components 1 | . 1 . Scanalyzer . | . . . Garrison Access Hacks . | . . . Unauthorized Hacks . | . . . Terminals . | . . . Fabricators . | . . . Repair Stations . | . . . Recycling Units . | . . . Scanalyzers . | . . . Garrison Access . | . . . Data Cores Recovered . | . . . Used . | . . . Hacking Detections 2 | . 2 . Full Trace Events . | . . . Feedback Events . | . . . Feedback Blocked . | . . . Robot Schematics Acquired . | . . . Robots Built . | . . . Authchips . | . . . Time . | . . . Total Robot Build Rating . | . . . Part Schematics Acquired . | . . . Parts Built . | . . . Authchips . | . . . Time . | . . . Total Part Build Rating . | . . . Part Studies Acquired . | . . . Parts Repaired . | . . . Time . | . . . Parts Recycled . | . . . Recycled Matter . | . . . Retrieved Matter . | . . . Retrieved Components 8 | . 8 . Parts Scanalyzed . | . . . Part Schematics Acquired . | . . . Parts Damaged . | . . . Bothacking | -11 -10 -10 ------------ Run | Yrd Mat Sub Used RIF Installer . | . . . Robots Hacked . | . . . Non-combat . | . . . Combat . | . . . Robot Hacks Applied . | . . . Relay Couplers Released . | . . . Fabnet Peak Effective % . | . . . Robots Rewired . | . . . Allies Hacked . | . . . Hacks Repelled . | . . . Allies | -11 -10 -10 -------- Run | Yrd Mat Sub Total Allies . | . . . Largest Group . | . . . Highest-Rated Group . | . . . Highest-Rated Ally . | . . . Total Orders . | . . . Ally Attacks . | . . . Total Damage . | . . . Kills . | . . . Allies Corrupted . | . . . Allies Melted . | . . . Intel | -11 -10 -10 ------- Run | Yrd Mat Sub Active Infowar (turns) 2622 | 50 1673 899 Seismic 2622 | 50 1673 899 Robot Analysis Total . | . . . Derelict Logs Recovered 2 | . . 2 Drone Launches . | . . . Drone Recoveries . | . . . Exploration | -11 -10 -10 ------------- Run | Yrd Mat Sub Turns Passed 2723 | 151 1673 899 Spaces Moved 1348 | 64 804 480 Core 5 | 5 . . Treads 1343 | 59 804 480 Legs . | . . . Wheels . | . . . Hover . | . . . Flight . | . . . Fastest Speed 50 | 50 160 160 Average Speed 159 | 151 160 160 Slowest Speed 240 | 160 160 240 Overloaded Moves . | . . . Propulsion Burnouts . | . . . Robots Hopped . | . . . Potential Cave-ins . | . . . Cave-ins Triggered . | . . . Exploration Rate (%) 38 | 4 82 28 Regions Visited 2 Branch Regions 1 Pre-discovered Areas 1 | . . 1 Known Exits Taken . | . . . Unknown Exits Taken 2 | 1 1 . Scrap Searched . | . . . Spaces Dug 3 | . . 3 Terrain Destroyed 6 | . . 6 Melee 3 | . . 3 Projectile . | . . . AOE 3 | . . 3 Terrain Rammed . | . . . Walls Destroyed . | . . . Machines Disabled . | . . . Actions | -11 -10 -10 --------- Run | Yrd Mat Sub Total 1724 | 85 1072 567 Wait 218 | . 181 37 Move 1346 | 63 803 480 Hop . | . . . Pick Up 13 | . 12 1 Fast Attach 7 | 7 . . Attach 5 | . 1 4 Detach 1 | . 1 . Swap 14 | . 10 4 Drop 4 | . 4 . Fire 78 | 15 54 9 Melee 32 | . . 32 Ram . | . . . Kick . | . . . Crush 6 | . 6 . Escape Stasis . | . . . Rewire . | . . . Trap . | . . . Miscellaneous . | . . . Route ------- -11/Scrapyard -10/Materials (discovered 4 exits: [*Mat x2] / *Min / *Sub) -10/Subcaves History --------- Turn | Location | Event 47 | -11/Scrapyard | Discovered new exit (range 13) 152 | -11/Scrapyard | Entered Materials 308 | -10/Materials | Build established: Mutant 500 | -10/Materials | Discovered new exit (range 3) 746 | -10/Materials | Discovered new exit (range 3) 841 | -10/Materials | Discovered new exit (range 14) 1084 | -10/Materials | Discovered new exit (range 16) 1577 | -10/Materials | Identified exit to Mines 1825 | -10/Materials | Entered Subcaves 1846 | -10/Subcaves | Learned location of 1 exit from Materials 2019 | -10/Subcaves | Visited Clippyterm 2024 | -10/Subcaves | Learned Factory stockpile data 2052 | -10/Subcaves | A swath of the cavern ceiling suddenly collapsed 2275 | -10/Subcaves | Ambushed by Subdwellers from Twisted Machinery 2328 | -10/Subcaves | Core integrity fell below 50% 2395 | -10/Subcaves | Core integrity fell below 20% 2404 | -10/Subcaves | Lost 4 parts (1p2n1w) 2692 | -10/Subcaves | Learned location of Zion (-6) 2724 | -10/Subcaves | Destroyed by UM-TVT(R) with Subdweller Beam Cannon Last Messages --------------- 02398_ 9B-ZDY(R) destroyed. 02411_ 0Z-AUJ(R) affixes Scrap Shield Fragment to Scrap Shield. 02412_ 0Z-AUJ(R) destroyed. 02419_ Acquired Sub. Shrapnel Launcher. 02430_ Subatomizers dissect the Sub. Laser. 02432_ Acquired 1 matter. 02436_ Acquired 2 matter. 02574_ Subatomizers dissect the Sub. Power Source. 02604_ Acquired 1 matter. 02611_ Subatomizers dissect the Sub. Power Source. 02618_ Acquired 6 matter. 02623_ Subatomizers dissect the Sub. Power Source. 02692_ Acquired derelict log, extracted data. World map updated: -6/Zion. 02713_ YT-VXT(R) destroyed. 02724_ Lgt. Treads destroyed. Map ----- +----------------------------------------------------+ | ?????????????????????????????????????????????????? | | ?????????????????????????????????????????????????? | | ?????????????????????????????????????????????????? | | ?????????????????????????????????????????????????? | | ?????????????????????????????????????????????????? | | ?????????????????????????????????????????????????? | | ?????????????????????????????????????????????????? | | ?????????????????????????????????????????????????? | | ?????????????????????????????????????????????????? | | ????????????????????????????????#####????????????? | | ????????????????????????????????# "#????????????# | | ????????????????????????????????##"##????#######?# | | ?????????????????????????????????##"###?##"#"""#?# | | ?????????????????????????????????#""""### """" ### | | ?????????????????????????????????###" """## ##""#" | | ???????????????????????????????????###"""## ###""# | | ?????????????????????????????????????###"#""##"### | | ????????????????????????????????######"""""#"###?# | | ???????????????????????????????# ##""""#"#"#"##??? | | ??????????????????????????????## #####"#""" #"#??? | | ?????????????????????????????## #??#######""#??? | | ????????????????????????????## #?????????#"##??? | | ????????????????????????##### #?????????######? | | ????????????????????????#;## #??????????### ## | | ???????????????????????## # ##??######## | | ???????????????????????# @= #### # ## | | ????????????"??????????#R %! # ## | | ???????????#" ????????##!#* ##### | | ????????????# "##??### #### ######?# | | ????????????# ## ##??## ## ##???#"## | | ????????????????## #????###### ##????# | | ????????????????# #?????????######?????## | | ????????????????## # ##??????????????????#### | | ?????????????????#?#####???????????????????# " | | ???????????????????????????????????????????### = | | ????????????????????????????????????????????# [% | | ????????????????????????????????????????????# | | ????????????????????????????????????????????# "# | | ????????????????????????????????????????????###### | | ?????????????????????????????????????????????????# | | ?????????????????????????????????????????????????# | | ?????????????????????????????????????????????????? | | ?????????????????????????????????????????????????# | | ???????????????????????????????????????????????### | | ???????????????????????????????????????????????# | | ??????????????????????????????????????????????## | | ??????????????????????????????????????????????#" " | | ?????????????????##?########??????????????????### | | ????????????????## ## ######???????????????## | | ???????????????## ####???###???????# | +----------------------------------------------------+ Best States ------------- Heat Dissipation 25 Energy Generation 10 Energy Capacity 250 Matter Stores 300 Matter Capacity 300 Sight Range 16 Terrain Scan Density 10 Evasion (%) 40 Recoil Reduction 2 Item Schematics ----------------- None Robot Schematics ------------------ None Fabricated ------------ Nothing Repaired ---------- Nothing Studied --------- None Alien Tech Used ----------------- None Achievements -------------- None Challenges ------------ None Game ------ Seed TripodEnhancedWell Manual? 0 Play Time 00:15:13 Cumulative 160.9 hours Start 2026.04.30 @ 12:35:06 End 2026.04.30 @ 12:46:09 Sessions 1 Manual Loads 0 Difficulty Rogue Special Mode None Game No. 248 Rogue 248 Adventurer 0 Explorer 0 Win Type - Total 1 Types 1/0/0/0/0/0/0/0/0/0 Lore% 54 Gallery% 56 Achievement% 43 Wizard Run 0 Options --------- Layout 1 ASCII 0 Keyboard 1 Movement Arrows Keybinds 0 Fullscreen 1 Font 24/Smallcaps Map View 50x35 Zoom Use 0% Tactical HUD 1 Map Filters NONE Filters NONE Steam 1 RUN: 9fa8ee50-1fa0-4315-a4b1-b63cc3f503a9